[Event "51st La Roda Open 2025"]
[Site "La Roda"]
[Date "2025.04.18"]
[Round "6.11"]
[White "Martinez Herranz, Francisco Jose"]
[Black "Garcia Jimenez, Santiago"]
[Result "1/2-1/2"]
[Annotator "ChessBase"]
[ECO "C41"]
[WhiteElo "2050"]
[BlackElo "2241"]
[PlyCount "161"]
[EventDate "2025.04.15"]
[EventType "swiss"]
[EventCountry "ESP"]
[SourceTitle "playchess.com"]
[Source "ChessBase"]
[SourceQuality "1"]
[TimeControl "5400+30"]

1. e4 {[%emt 0:00:02]} e5 {[%emt 0:00:07]} 2. Nc3 {[%emt 0:00:19]} Nf6 3. Nf3 {[%emt 0:05:22]} d6 {[%emt 0:06:11]} 4. d4 {[%emt 0:00:24]} Nbd7 {[%emt 0:00:07]} 5. a4 {[%emt 0:00:36]} Be7 {[%emt 0:00:15]} 6. Bc4 {[%emt 0:00:50]} O-O {[%emt 0:00:09]} 7. O-O {[%emt 0:00:47]} c6 {[%emt 0:01:23]} 8. Re1 {[%emt 0:02:56]} h6 {[%emt 0:00:06]} 9. h3 {[%emt 0:08:38]} Re8 {[%emt 0:00:05]} 10. Bf1 {[%emt 0:05:16]} Bf8 {[%emt 0:01:11]} 11. b3 {[%emt 0:01:40]} Qc7 {[%emt 0:06:59]} 12. a5 {[%emt 0:03:23]} exd4 {[%emt 0:05:48]} 13. Qxd4 {[%emt 0:04:15]} Ne5 {[%emt 0:01:19]} 14. Nxe5 {[%emt 0:02:02]} dxe5 {[%emt 0:00:17]} 15. Qa4 {[%emt 0:03:44]} Nd7 {[%emt 0:06:47]} 16. b4 {[%emt 0:09:05]} Qd6 {[%emt 0:15:09]} 17. Ba3 {[%emt 0:03:48]} Qe6 {[%emt 0:01:45]} 18. Nd1 {[%emt 0:09:05]} b5 {[%emt 0:04:08]} 19. Qb3 {[%emt 0:04:06]} Qxb3 {[%emt 0:02:45]} 20. cxb3 {[%emt 0:00:01]} Nb8 {[%emt 0:00:14]} 21. Rc1 {[%emt 0:02:20]} Be6 {[%emt 0:00:08]} 22. Re3 {[%emt 0:01:37]} Rd8 {[%emt 0:13:06]} 23. Nb2 {[%emt 0:03:03]} Rd2 {[%emt 0:05:43]} 24. Rd3 {[%emt 0:00:44]} Rxd3 {[%emt 0:00:20]} 25. Nxd3 {[%emt 0:00:04]} f6 {[%emt 0:00:54]} 26. Rc3 {[%emt 0:00:53]} Kf7 {[%emt 0:03:18]} 27. g3 {[%emt 0:05:37]} Bd6 {[%emt 0:03:34]} 28. f4 {[%emt 0:03:53]} Ke7 {[%emt 0:06:53]} 29. Kf2 {[%emt 0:01:35]} g5 {[%emt 0:02:26]} 30. f5 {[%emt 0:01:24]} Bf7 {[%emt 0:00:30]} 31. Be2 {[%emt 0:01:01]} Be8 {[%emt 0:02:08]} 32. Ke3 {[%emt 0:04:29]} Na6 {[%emt 0:01:36]} 33. Rc2 {[%emt 0:03:20]} Rd8 {[%emt 0:00:52]} 34. Rd2 {[%emt 0:00:55]} Bf7 {[%emt 0:00:55]} 35. Bd1 {[%emt 0:00:09]} Rc8 {[%emt 0:00:09]} 36. Rb2 {[%emt 0:02:37]} Rc7 {[%emt 0:01:17]} 37. Rd2 {[%emt 0:00:31]} Rd7 {[%emt 0:03:35]} 38. Ke2 {[%emt 0:02:31]} Rc7 {[%emt 0:01:28]} 39. Ke3 {[%emt 0:00:10]} c5 {[%emt 0:01:29]} 40. bxc5 {[%emt 0:00:28]} Nxc5 {[%emt 0:00:09]} 41. Nb4 {[%emt 0:07:20]} Nb7 {[%emt 0:01:47]} 42. a6 {[%emt 0:00:00]} Bc5+ {[%emt 0:00:37]} 43. Ke2 {[%emt 0:00:00]} Na5 {[%emt 0:01:00]} 44. Rb2 {[%emt 0:00:00]} Ke8 {[%emt 0:00:54]} 45. Bc2 {[%emt 0:00:40]} Bd4 {[%emt 0:01:34]} 46. Rb1 {[%emt 0:00:01]} Rc3 {[%emt 0:00:01]} 47. Bd3 {[%emt 0:00:16]} Bxb3 {[%emt 0:01:07]} 48. Bb2 {[%emt 0:00:52]} Rc5 {[%emt 0:00:39]} 49. Rc1 {[%emt 0:00:15]} Bc4 {[%emt 0:00:37]} 50. Bxd4 {[%emt 0:00:36]} exd4 {[%emt 0:00:34]} 51. Rb1 {[%emt 0:00:50]} Nc6 {[%emt 0:00:52]} 52. Nd5 {[%emt 0:00:31]} Bxd3+ {[%emt 0:00:47]} 53. Kxd3 {[%emt 0:00:01]} Kf7 {[%emt 0:00:24]} 54. Rb3 {[%emt 0:00:41]} h5 {[%emt 0:00:10]} 55. h4 {[%emt 0:01:09]} g4 {[%emt 0:00:25]} 56. Nf4 {[%emt 0:00:37]} b4 {[%emt 0:00:01]} 57. Nxh5 {[%emt 0:00:38]} Rc3+ {[%emt 0:00:29]} 58. Rxc3 {[%emt 0:00:02]} bxc3 {[%emt 0:01:03]} 59. Nf4 {[%emt 0:00:16]} Ke7 {[%emt 0:00:33]} 60. Nd5+ {[%emt 0:01:00]} Kf7 {[%emt 0:00:18]} 61. Nf4 {[%emt 0:00:07]} Kg8 {[%emt 0:00:24]} 62. Nd5 {[%emt 0:00:18]} Kg7 {[%emt 0:00:06]} 63. Nf4 {[%emt 0:00:33]} Kh6 {[%emt 0:00:28]} 64. Nd5 {[%emt 0:01:01]} Ne5+ {[%emt 0:00:33]} 65. Kc2 {[%emt 0:00:29]} Kg7 {[%emt 0:00:51]} 66. Nf4 {[%emt 0:00:26]} Nf3 {[%emt 0:00:21]} 67. Ne6+ {[%emt 0:00:40]} Kh6 {[%emt 0:00:55]} 68. Nf4 {[%emt 0:00:50]} Ne1+ {[%emt 0:00:39]} 69. Kd1 {[%emt 0:00:36]} c2+ {[%emt 0:00:10]} 70. Kd2 {[%emt 0:00:21]} d3 {[%emt 0:00:19]} 71. Kc1 {[%emt 0:00:33]} Kg7 {[%emt 0:00:23]} 72. Kd2 {[%emt 0:00:09]} Nf3+ {[%emt 0:00:23]} 73. Kc1 {[%emt 0:00:13]} Ne5 {[%emt 0:00:44]} 74. Ne6+ {[%emt 0:00:49]} Kf7 {[%emt 0:00:37]} 75. Nf4 {[%emt 0:00:05]} Kg8 {[%emt 0:00:21]} 76. Kd2 {[%emt 0:00:20]} Nc4+ {[%emt 0:00:45]} 77. Kc1 {[%emt 0:00:06]} Ne5 {[%emt 0:00:50]} 78. Kd2 {[%emt 0:00:02]} Kf7 {[%emt 0:00:26]} 79. Kc1 {[%emt 0:00:09]} Ke7 {[%emt 0:00:15]} 80. Ng6+ {[%emt 0:01:17]} Nxg6 {[%emt 0:01:11]} 81. fxg6 {[%emt 0:00:02]} 1/2-1/2

[Event "51st La Roda Open 2025"]
[Site "La Roda"]
[Date "2025.04.18"]
[Round "6.12"]
[White "Juan Lepp, Jaime Boris"]
[Black "Nomindalai Tumurbaatar"]
[Result "1/2-1/2"]
[Annotator "ChessBase"]
[ECO "B90"]
[WhiteElo "2015"]
[BlackElo "2211"]
[PlyCount "69"]
[EventDate "2025.04.15"]
[EventType "swiss"]
[EventCountry "ESP"]
[SourceTitle "playchess.com"]
[Source "ChessBase"]
[SourceQuality "1"]
[TimeControl "5400+30"]

1. e4 {[%emt 0:00:01]} c5 {[%emt 0:08:16]} 2. Nf3 {[%emt 0:00:19]} d6 {[%emt 0:00:30]} 3. d4 {[%emt 0:00:21]} cxd4 {[%emt 0:00:10]} 4. Nxd4 {[%emt 0:00:03]} Nf6 {[%emt 0:00:08]} 5. Nc3 {[%emt 0:00:08]} a6 {[%emt 0:00:09]} 6. h3 {[%emt 0:00:17]} g6 {[%emt 0:16:10]} 7. g4 {[%emt 0:01:53]} h5 {[%emt 0:14:09]} 8. g5 {[%emt 0:00:45]} Nh7 {[%emt 0:00:12]} 9. h4 {[%emt 0:04:12]} Bg7 {[%emt 0:01:21]} 10. Bg2 {[%emt 0:01:06]} Nc6 {[%emt 0:04:45]} 11. Be3 {[%emt 0:03:53]} Bg4 {[%emt 0:04:51]} 12. f3 {[%emt 0:03:48]} Bd7 {[%emt 0:00:05]} 13. Qd2 {[%emt 0:05:46]} Rc8 {[%emt 0:02:34]} 14. Nd5 {[%emt 0:04:26]} Ne5 {[%emt 0:04:43]} 15. b3 {[%emt 0:02:30]} O-O {[%emt 0:00:42]} 16. O-O {[%emt 0:09:15]} e6 {[%emt 0:05:28]} 17. Nf4 {[%emt 0:07:55]} Qc7 {[%emt 0:21:09]} 18. Rad1 {[%emt 0:07:19]} Rfd8 {[%emt 0:04:49]} 19. Bh3 {[%emt 0:02:00]} Nf8 {[%emt 0:01:47]} 20. Qf2 {[%emt 0:19:23]} b5 {[%emt 0:04:28]} 21. Nfe2 {[%emt 0:06:46]} Nc6 {[%emt 0:00:53]} 22. Nxc6 {[%emt 0:02:56]} Qxc6 {[%emt 0:00:04]} 23. Rd2 {[%emt 0:16:58]} d5 {[%emt 0:03:21]} 24. exd5 {[%emt 0:00:00]} exd5 {[%emt 0:00:02]} 25. Bxd7 {[%emt 0:00:00]} Qxd7 {[%emt 0:01:18]} 26. Rfd1 {[%emt 0:00:00]} Qf5 {[%emt 0:00:51]} 27. Ng3 {[%emt 0:00:00]} Qh3 {[%emt 0:00:14]} 28. Ne2 {[%emt 0:00:00]} Ne6 {[%emt 0:01:21]} 29. Nd4 {[%emt 0:03:00]} Bxd4 {[%emt 0:00:00]} 30. Bxd4 {[%emt 0:00:00]} Nxd4 {[%emt 0:00:26]} 31. Rxd4 {[%emt 0:01:00]} Qf5 {[%emt 0:01:04]} 32. R4d3 {[%emt 0:00:00]} b4 {[%emt 0:00:00]} 33. Kg2 {[%emt 0:00:00]} d4 {[%emt 0:00:09]} 34. R1d2 {[%emt 0:00:00]} Rd5 {[%emt 0:00:48]} 35. Rxd4 {[%emt 0:01:13]} 1/2-1/2

[Event "51st La Roda Open 2025"]
[Site "La Roda"]
[Date "2025.04.18"]
[Round "6.13"]
[White "Vinals Rioja, Jaume"]
[Black "Vehi Bach, Victor Manuel"]
[Result "1/2-1/2"]
[Annotator "ChessBase"]
[ECO "A45"]
[WhiteElo "1928"]
[BlackElo "2178"]
[PlyCount "61"]
[EventDate "2025.04.15"]
[EventType "swiss"]
[EventCountry "ESP"]
[SourceTitle "playchess.com"]
[Source "ChessBase"]
[SourceQuality "1"]
[TimeControl "5400+30"]

1. d4 {[%emt 0:00:03]} Nf6 {[%emt 0:00:07]} 2. Bg5 {[%emt 0:00:10]} e6 {[%emt 0:00:14]} 3. e4 {[%emt 0:00:14]} h6 {[%emt 0:00:11]} 4. Bxf6 {[%emt 0:00:10]} Qxf6 {[%emt 0:00:08]} 5. c3 {[%emt 0:00:08]} d6 {[%emt 0:01:08]} 6. Bd3 g6 {[%emt 0:03:44]} 7. Ne2 {[%emt 0:00:37]} Bg7 {[%emt 0:00:09]} 8. O-O O-O {[%emt 0:13:37]} 9. f4 {[%emt 0:01:38]} Qe7 {[%emt 0:00:11]} 10. Nd2 {[%emt 0:01:19]} Nd7 {[%emt 0:02:47]} 11. Nf3 {[%emt 0:02:21]} e5 {[%emt 0:36:07]} 12. Qc2 {[%emt 0:04:53]} b6 {[%emt 0:02:05]} 13. Rae1 {[%emt 0:01:15]} Bb7 {[%emt 0:00:11]} 14. dxe5 {[%emt 0:08:06]} dxe5 {[%emt 0:00:08]} 15. f5 {[%emt 0:00:18]} Nf6 {[%emt 0:07:11]} 16. fxg6 {[%emt 0:02:05]} fxg6 {[%emt 0:00:01]} 17. Ng3 {[%emt 0:00:18]} Kh7 {[%emt 0:00:37]} 18. Kh1 {[%emt 0:02:22]} Rad8 {[%emt 0:00:28]} 19. Bc4 {[%emt 0:01:08]} Rd7 {[%emt 0:08:40]} 20. Rd1 {[%emt 0:04:42]} Rfd8 {[%emt 0:01:32]} 21. Rxd7 {[%emt 0:01:41]} Rxd7 {[%emt 0:00:01]} 22. Qe2 {[%emt 0:00:22]} a5 {[%emt 0:01:27]} 23. Bb3 {[%emt 0:00:42]} Rd6 {[%emt 0:07:00]} 24. h4 {[%emt 1:07:58]} Bc8 {[%emt 0:14:46]} 25. h5 {[%emt 0:00:30]} Nxh5 {[%emt 0:00:30]} 26. Nxh5 gxh5 {[%emt 0:00:30]} 27. Qc4 Be6 {[%emt 0:00:30]} 28. Qe2 {[%emt 0:01:30]} Bc8 29. Nh2 {[%emt 0:00:30]} Qf6 30. Qxh5 Qd8 {[%emt 0:01:30]} 31. Qf3 {[%emt 0:01:00]} 1/2-1/2

[Event "51st La Roda Open 2025"]
[Site "La Roda"]
[Date "2025.04.18"]
[Round "6.14"]
[White "Rumbos Garcia, Alejandro Daniel"]
[Black "Diaz Rodriguez, Jose Antonio"]
[Result "1-0"]
[Annotator "ChessBase"]
[ECO "A31"]
[WhiteElo "2178"]
[BlackElo "2006"]
[PlyCount "65"]
[EventDate "2025.04.15"]
[EventType "swiss"]
[EventCountry "ESP"]
[SourceTitle "playchess.com"]
[Source "ChessBase"]
[SourceQuality "1"]
[TimeControl "5400+30"]

1. c4 {[%emt 0:00:05]} c5 {[%emt 0:00:53]} 2. Nf3 {[%emt 0:00:11]} Nf6 {[%emt 0:00:27]} 3. d4 {[%emt 0:00:06]} cxd4 {[%emt 0:00:11]} 4. Nxd4 e5 {[%emt 0:03:43]} 5. Nb5 d5 {[%emt 0:05:57]} 6. cxd5 {[%emt 0:00:30]} Bb4+ {[%emt 0:07:48]} 7. Bd2 {[%emt 0:06:30]} Nxd5 {[%emt 0:16:04]} 8. e4 {[%emt 0:33:22]} Bxd2+ {[%emt 0:04:14]} 9. Nxd2 {[%emt 0:01:02]} Nf6 {[%emt 0:02:02]} 10. Nc4 {[%emt 0:00:10]} Qxd1+ {[%emt 0:04:13]} 11. Rxd1 {[%emt 0:00:08]} Na6 {[%emt 0:00:07]} 12. Nbd6+ {[%emt 0:01:57]} Ke7 {[%emt 0:01:16]} 13. Nxe5 {[%emt 0:00:28]} Nc5 {[%emt 0:04:28]} 14. f3 {[%emt 0:03:25]} Be6 {[%emt 0:04:04]} 15. b4 {[%emt 0:00:17]} Ncd7 {[%emt 0:00:40]} 16. Nxd7 {[%emt 0:01:01]} Nxd7 {[%emt 0:01:06]} 17. Bb5 {[%emt 0:00:22]} Ne5 {[%emt 0:03:10]} 18. f4 {[%emt 0:02:18]} a6 {[%emt 0:02:40]} 19. Be2 {[%emt 0:01:30]} Nc6 {[%emt 0:04:41]} 20. a3 {[%emt 0:00:05]} b5 {[%emt 0:03:48]} 21. e5 {[%emt 0:01:48]} Rad8 {[%emt 0:03:15]} 22. Bf3 {[%emt 0:00:09]} Nb8 {[%emt 0:00:45]} 23. O-O {[%emt 0:00:55]} f5 {[%emt 0:02:45]} 24. Rc1 {[%emt 0:01:43]} Rd7 {[%emt 0:01:15]} 25. Rc5 {[%emt 0:00:27]} Rhd8 {[%emt 0:00:39]} 26. Re1 {[%emt 0:01:31]} g6 {[%emt 0:01:54]} 27. h3 {[%emt 0:00:26]} Rf8 {[%emt 0:01:10]} 28. Rec1 {[%emt 0:00:15]} Rfd8 {[%emt 0:01:29]} 29. Bb7 {[%emt 0:00:26]} Bg8 {[%emt 0:06:03]} 30. Bc8 {[%emt 0:01:07]} Ra7 {[%emt 0:00:48]} 31. Rc7+ {[%emt 0:00:15]} Rxc7 {[%emt 0:00:08]} 32. Rxc7+ {[%emt 0:00:02]} Kf8 {[%emt 0:00:19]} 33. Kf2 {[%emt 0:00:06]} 1-0

[Event "51st La Roda Open 2025"]
[Site "La Roda"]
[Date "2025.04.18"]
[Round "6.16"]
[White "Ruiz Sotoca, Jose Francisco"]
[Black "Rodriguez Rivera, Pedro"]
[Result "0-1"]
[Annotator "NA"]
[ECO "A55"]
[WhiteElo "1865"]
[BlackElo "2127"]
[PlyCount "60"]
[EventDate "2025.04.15"]
[EventType "swiss"]
[EventCountry "ESP"]
[SourceTitle "playchess.com"]
[Source "ChessBase"]
[SourceQuality "1"]
[TimeControl "5400+30"]

1. d4 {[%emt 0:00:02]} Nf6 {[%emt 0:00:10]} 2. Nf3 {[%emt 0:00:06]} d6 {[%emt 0:00:05]} 3. c4 {[%emt 0:00:10]} Nbd7 {[%emt 0:00:01]} 4. Nc3 {[%emt 0:00:18]} e5 {[%emt 0:00:02]} 5. e4 {[%emt 0:06:02]} Be7 {[%emt 0:00:06]} 6. Bd3 {[%emt 0:01:33]} c6 {[%emt 0:00:19]} 7. O-O {[%emt 0:00:39]} O-O {[%emt 0:00:09]} 8. Re1 {[%emt 0:04:24]} a6 {[%emt 0:00:15]} 9. a4 {[%emt 0:03:23]} a5 {[%emt 0:00:01]} 10. Ne2 {[%emt 0:07:59]} exd4 {[%emt 0:03:43]} 11. Nexd4 {[%emt 0:01:13]} Nc5 {[%emt 0:00:04]} 12. Bc2 {[%emt 0:03:37]} Re8 {[%emt 0:02:10]} 13. Bf4 {[%emt 0:08:49]} g6 {[%emt 0:02:49]} 14. Ra3 {[%emt 0:12:13]} Bf8 {[%emt 0:04:43]} 15. Rae3 {[%emt 0:00:38]} Ng4 {[%emt 0:05:08]} 16. R3e2 {[%emt 0:01:36]} Bg7 {[%emt 0:01:12]} 17. e5 {[%emt 0:07:37]} dxe5 {[%emt 0:07:59]} 18. Nxe5 {[%emt 0:02:24]} Nxe5 {[%emt 0:00:09]} 19. Bxe5 {[%emt 0:00:06]} Bg4 {[%emt 0:05:11]} 20. Bf6 {[%emt 0:11:49]} Qd7 {[%emt 0:04:04]} 21. Bxg7 {[%emt 0:20:43]} Bxe2 {[%emt 0:03:52]} 22. Rxe2 {[%emt 0:00:23]} Kxg7 {[%emt 0:02:03]} 23. Rd2 {[%emt 0:01:38]} Qe7 {[%emt 0:01:18]} 24. Nf3 {[%emt 0:02:01]} Rad8 {[%emt 0:00:48]} 25. h3 {[%emt 0:00:52]} Qf6 {[%emt 0:02:05]} 26. Rxd8 {[%emt 0:01:40]} Qxd8 {[%emt 0:01:05]} 27. Qa1 {[%emt 0:01:16]} Qf6 {[%emt 0:00:40]} 28. Qa3 {[%emt 0:00:13]} Na6 {[%emt 0:00:46]} 29. Qb3 {[%emt 0:01:02]} Nb4 {[%emt 0:00:10]} 30. Bb1 {[%emt 0:00:29]} Re2 {[%emt 0:00:32]} 0-1

[Event "51st La Roda Open 2025"]
[Site "La Roda"]
[Date "2025.04.18"]
[Round "6.17"]
[White "Portero Rubio, Martin"]
[Black "Amoes, Francisco"]
[Result "0-1"]
[Annotator "ChessBase"]
[ECO "C54"]
[WhiteElo "2125"]
[BlackElo "1875"]
[PlyCount "80"]
[EventDate "2025.04.15"]
[EventType "swiss"]
[EventCountry "ESP"]
[SourceTitle "playchess.com"]
[Source "ChessBase"]
[SourceQuality "1"]
[TimeControl "5400+30"]

1. e4 {[%emt 1:31:00]} e5 {[%emt 0:04:05]} 2. Nf3 {[%emt 0:00:00]} Nc6 {[%emt 0:00:10]} 3. Bc4 {[%emt 0:00:00]} Nf6 {[%emt 0:00:09]} 4. d3 {[%emt 0:00:00]} Bc5 {[%emt 0:00:12]} 5. c3 {[%emt 0:00:00]} a6 {[%emt 0:00:23]} 6. a4 {[%emt 0:00:00]} d6 {[%emt 0:00:24]} 7. O-O {[%emt 0:00:00]} Ba7 {[%emt 0:00:08]} 8. Re1 {[%emt 0:00:00]} Ng4 {[%emt 0:09:55]} 9. Rf1 {[%emt 0:00:00]} Qe7 {[%emt 0:03:20]} 10. Nbd2 {[%emt 0:00:00]} O-O {[%emt 0:00:59]} 11. h3 {[%emt 0:00:00]} Nh6 {[%emt 0:02:27]} 12. Re1 {[%emt 0:00:00]} Kh8 {[%emt 0:00:32]} 13. Nf1 {[%emt 0:00:00]} f5 {[%emt 0:01:52]} 14. Bxh6 {[%emt 0:00:00]} gxh6 {[%emt 0:00:04]} 15. exf5 {[%emt 0:00:00]} Bxf5 {[%emt 0:01:47]} 16. Ng3 {[%emt 0:00:00]} Bxh3 {[%emt 0:44:12]} 17. gxh3 {[%emt 0:00:00]} Qf6 {[%emt 0:00:14]} 18. Kg2 {[%emt 0:00:00]} Ne7 {[%emt 0:02:02]} 19. d4 {[%emt 0:00:00]} Ng6 {[%emt 0:03:47]} 20. Re4 {[%emt 0:00:00]} Nf4+ {[%emt 0:02:12]} 21. Kh2 {[%emt 0:00:00]} d5 {[%emt 0:00:49]} 22. dxe5 {[%emt 0:00:00]} Qb6 {[%emt 0:00:33]} 23. Rd4 {[%emt 0:00:00]} dxc4 {[%emt 0:00:13]} 24. Qd2 {[%emt 0:00:00]} Ne6 {[%emt 0:02:07]} 25. Kg2 {[%emt 0:04:20]} Qc6 {[%emt 0:09:47]} 26. Qe3 {[%emt 0:04:03]} Bxd4 {[%emt 0:00:41]} 27. cxd4 {[%emt 0:00:09]} Ng5 {[%emt 0:02:46]} 28. Rd1 {[%emt 0:04:04]} Rxf3 {[%emt 0:01:58]} 29. d5 {[%emt 0:00:21]} Rxe3 {[%emt 0:03:15]} 30. dxc6 {[%emt 0:00:01]} Rd3 {[%emt 0:00:29]} 31. cxb7 {[%emt 0:00:12]} Rb8 {[%emt 0:00:11]} 32. Re1 {[%emt 0:00:25]} Ne6 {[%emt 0:00:56]} 33. Rc1 {[%emt 0:01:35]} Rxb7 {[%emt 0:00:09]} 34. Rxc4 {[%emt 0:00:02]} Rxb2 {[%emt 0:00:22]} 35. Rc6 {[%emt 0:00:50]} Nf4+ {[%emt 0:00:43]} 36. Kg1 {[%emt 0:00:01]} Nxh3+ {[%emt 0:01:17]} 37. Kh2 {[%emt 0:00:13]} Nxf2 {[%emt 0:00:24]} 38. e6 {[%emt 0:01:28]} Ne4+ {[%emt 0:00:11]} 39. Kg1 {[%emt 0:00:18]} Rd1+ {[%emt 0:00:33]} 40. Nf1 {[%emt 0:00:01]} Ng3 {[%emt 0:00:17]} 0-1

[Event "51st La Roda Open 2025"]
[Site "La Roda"]
[Date "2025.04.18"]
[Round "6.18"]
[White "Perez Travieso, Saul"]
[Black "Leiva Raya, Nicolas"]
[Result "0-1"]
[Annotator "ChessBase"]
[ECO "E05"]
[WhiteElo "2111"]
[BlackElo "1831"]
[PlyCount "106"]
[EventDate "2025.04.15"]
[EventType "swiss"]
[EventCountry "ESP"]
[SourceTitle "playchess.com"]
[Source "ChessBase"]
[SourceQuality "1"]
[TimeControl "5400+30"]

1. Nf3 {[%emt 0:00:02]} Nf6 {[%emt 0:00:11]} 2. c4 {[%emt 0:00:04]} e6 {[%emt 0:00:05]} 3. g3 {[%emt 0:00:03]} d5 {[%emt 0:00:07]} 4. Bg2 {[%emt 0:00:02]} Be7 {[%emt 0:00:06]} 5. O-O {[%emt 0:00:04]} O-O {[%emt 0:00:05]} 6. d4 {[%emt 0:00:05]} dxc4 {[%emt 0:00:07]} 7. Qc2 {[%emt 0:00:03]} b6 {[%emt 0:05:07]} 8. Qxc4 {[%emt 0:05:50]} Ba6 {[%emt 0:05:57]} 9. Qc2 {[%emt 0:00:34]} Nd5 {[%emt 0:00:47]} 10. Nc3 {[%emt 0:02:56]} Nd7 {[%emt 0:05:16]} 11. Nxd5 {[%emt 0:03:53]} exd5 {[%emt 0:00:31]} 12. Bf4 {[%emt 0:01:16]} c5 {[%emt 0:10:34]} 13. dxc5 {[%emt 0:02:37]} bxc5 {[%emt 0:00:59]} 14. Rfd1 {[%emt 1:20:01]} Nb6 {[%emt 0:05:19]} 15. Ne5 {[%emt 0:00:00]} Bf6 {[%emt 0:06:49]} 16. Nd3 {[%emt 0:00:00]} Bxd3 {[%emt 0:06:05]} 17. Rxd3 {[%emt 0:00:00]} Rc8 {[%emt 0:06:18]} 18. g4 {[%emt 0:00:00]} g6 {[%emt 0:05:00]} 19. Rad1 {[%emt 0:00:00]} c4 {[%emt 0:05:59]} 20. Ra3 {[%emt 0:00:00]} Qd7 {[%emt 0:06:44]} 21. g5 {[%emt 0:00:00]} Be7 {[%emt 0:00:56]} 22. Rg3 {[%emt 0:00:00]} Rc6 {[%emt 0:06:43]} 23. h4 {[%emt 0:00:00]} f5 {[%emt 0:03:42]} 24. Bf3 {[%emt 0:00:00]} Qe6 {[%emt 0:01:18]} 25. Kg2 {[%emt 0:00:00]} Bd6 {[%emt 0:00:53]} 26. Qd2 {[%emt 0:00:00]} Bxf4 {[%emt 0:02:36]} 27. Qxf4 {[%emt 0:00:00]} Re8 {[%emt 0:00:38]} 28. h5 {[%emt 0:00:00]} Qe5 {[%emt 0:00:47]} 29. Qh4 {[%emt 0:00:00]} c3 {[%emt 0:02:53]} 30. hxg6 {[%emt 0:00:00]} Rxg6 {[%emt 0:01:07]} 31. Bh5 {[%emt 0:00:00]} c2 {[%emt 0:00:45]} 32. Bxg6 {[%emt 0:00:00]} hxg6 {[%emt 0:00:35]} 33. Rh1 {[%emt 0:00:00]} d4 {[%emt 0:02:25]} 34. Qh7+ {[%emt 0:00:00]} Kf8 {[%emt 0:00:05]} 35. Qh8+ {[%emt 0:03:24]} Qxh8 {[%emt 0:00:16]} 36. Rxh8+ {[%emt 0:00:03]} Kg7 {[%emt 0:00:14]} 37. Rh1 {[%emt 0:00:04]} Nd5 {[%emt 0:03:27]} 38. Rc1 {[%emt 0:02:28]} Rxe2 {[%emt 0:02:13]} 39. Kf1 {[%emt 0:00:41]} Nf4 {[%emt 0:02:03]} 40. Ra3 {[%emt 0:02:49]} d3 {[%emt 0:00:36]} 41. Rxa7+ {[%emt 0:00:02]} Kf8 {[%emt 0:00:20]} 42. Rc7 {[%emt 0:02:31]} d2 {[%emt 0:00:24]} 43. R7xc2 {[%emt 0:00:04]} dxc1=Q+ 44. Rxc1 {[%emt 0:00:06]} Rxf2+ {[%emt 0:00:26]} 45. Kxf2 {[%emt 0:00:14]} Nd3+ {[%emt 0:00:08]} 46. Ke3 {[%emt 0:01:50]} Nxc1 {[%emt 0:00:07]} 47. a3 {[%emt 0:01:06]} Ke7 {[%emt 0:00:09]} 48. b4 {[%emt 0:00:08]} Kd6 {[%emt 0:00:11]} 49. a4 {[%emt 0:00:28]} Na2 {[%emt 0:00:18]} 50. b5 {[%emt 0:00:24]} Kc5 {[%emt 0:00:06]} 51. Kf4 {[%emt 0:00:05]} Nc3 {[%emt 0:00:49]} 52. Ke5 {[%emt 0:00:06]} Ne4 {[%emt 0:00:30]} 53. Kf4 {[%emt 0:00:16]} Kb6 {[%emt 0:01:26]} 0-1

[Event "51st La Roda Open 2025"]
[Site "La Roda"]
[Date "2025.04.19"]
[Round "7.1"]
[White "Pranav Vijay"]
[Black "Lopez Martinez, Josep Manuel"]
[Result "1/2-1/2"]
[Annotator "RC"]
[ECO "C54"]
[WhiteElo "2252"]
[BlackElo "2460"]
[PlyCount "42"]
[EventDate "2025.04.15"]
[EventType "swiss"]
[EventCountry "ESP"]
[SourceTitle "playchess.com"]
[Source "ChessBase"]
[SourceQuality "1"]
[TimeControl "5400+30"]

1. e4 {[%emt 0:00:03]} e5 {[%emt 0:01:34]} 2. Nf3 {[%emt 0:00:07]} Nc6 {[%emt 0:00:11]} 3. Bc4 {[%emt 0:00:06]} Bc5 {[%emt 0:00:51]} 4. c3 {[%emt 0:00:08]} Nf6 {[%emt 0:00:43]} 5. d3 {[%emt 0:00:07]} d6 {[%emt 0:01:47]} 6. b4 {[%emt 0:00:08]} Bb6 {[%emt 0:00:43]} 7. a4 {[%emt 0:00:08]} a6 {[%emt 0:02:57]} 8. O-O {[%emt 0:02:05]} O-O {[%emt 0:02:58]} 9. Nbd2 {[%emt 0:00:39]} Ne7 {[%emt 0:01:35]} 10. Re1 {[%emt 0:13:07]} Ng6 {[%emt 0:09:33]} 11. Nf1 {[%emt 0:03:35]} c6 {[%emt 0:07:27]} 12. Bb3 {[%emt 0:04:47]} Re8 {[%emt 0:05:39]} 13. Ng3 {[%emt 0:03:29]} h6 {[%emt 0:04:05]} 14. a5 {[%emt 0:08:35]} Ba7 {[%emt 0:02:25]} 15. Be3 {[%emt 0:05:13]} Bxe3 {[%emt 0:02:20]} 16. fxe3 {[%emt 0:03:42]} d5 {[%emt 0:03:51]} 17. exd5 {[%emt 0:07:28]} cxd5 {[%emt 0:03:26]} 18. d4 {[%emt 0:07:59]} Qc7 {[%emt 0:03:02]} 19. dxe5 {[%emt 0:13:18]} Nxe5 {[%emt 0:00:37]} 20. Nxe5 {[%emt 0:04:30]} Qxe5 {[%emt 0:02:07]} 21. c4 {[%emt 0:00:37]} dxc4 {[%emt 0:00:18]} 1/2-1/2

[Event "51st La Roda Open 2025"]
[Site "La Roda"]
[Date "2025.04.19"]
[Round "7.2"]
[White "Fier, Alexandr"]
[Black "Gumularz, Szymon"]
[Result "1/2-1/2"]
[Annotator "TA"]
[ECO "C41"]
[WhiteElo "2534"]
[BlackElo "2604"]
[PlyCount "35"]
[EventDate "2025.04.15"]
[EventType "swiss"]
[EventCountry "ESP"]
[SourceTitle "playchess.com"]
[Source "ChessBase"]
[SourceQuality "1"]
[TimeControl "5400+30"]

{[%evp 14,21,22,10,25,16,42,17,14,12]} 1. e4 {[%emt 0:00:02]} d6 {[%emt 0:00:33]} 2. d4 {[%emt 0:00:05]} Nf6 {[%emt 0:00:03]} 3. Nc3 {[%emt 0:00:04]} e5 {[%emt 0:00:07]} 4. Nf3 {[%emt 0:00:23]} Nbd7 {[%emt 0:00:07]} 5. Be2 {[%emt 0:00:04]} Be7 {[%emt 0:00:17]} 6. O-O {[%emt 0:00:06]} O-O {[%emt 0:00:13]} 7. Re1 {[%emt 0:00:18]} c6 {[%emt 0:00:29]} 8. a4 {[%emt 0:00:04]} Re8 {[%emt 0:00:48] C41: Philidor Defence.} 9. a5 {[%emt 0:00:52]} Bf8 {[%emt 0:00:28]} 10. Bf1 {[%emt 0:01:10]} exd4 {[%emt 0:12:33]} 11. Nxd4 {[%emt 0:02:26] An uneventful encounter.   Weighted Error Value: White=0.11 (very precise) /Black=0.09 (flawless)   Inaccurate:     	---       	Black=1      OK:         	---       	Black=1} Nc5 $146 12. f3 d5 13. e5 Nfd7 14. f4 f6 15. e6 Nb8 16. f5 Ne4 17. Nxe4 dxe4 18. Rxe4 {1-0 Duda,J (2732)-Sanal,V (2567) Titled Tuesday intern op 13th Feb Early blitz 2024 (7)} 1/2-1/2